fUSD/lending_fUSD_20250623
["ID","MTS","AMOUNT","RATE_DAILY","PERIOD"]
[367121635,1750662794827,-563.6,0.00032876,3]
[367121636,1750662794841,-2328.1,0.00032876,3]
[367121637,1750662795157,-641.56,0.00032876,3]
[367121638,1750662795208,-490.0,0.00032876,3]
[367121639,1750662795219,-2984.61,0.00032876,3]
[367121640,1750662795228,-834.55,0.00032876,3]
[367121641,1750662795238,-1714.75,0.00032876,3]
[367121642,1750662795248,-1666.5,0.00032876,3]
[367121643,1750662795258,-579.07,0.00032876,3]
[367121644,1750662795268,-774.87,0.00032876,3]
[367121645,1750662795278,-523.64,0.00032876,3]
[367121646,1750662795287,-1685.1,0.00032876,3]
[367121647,1750662795296,-198.016965,0.00032876,3]
[367121648,1750662795307,-685.83,0.00032876,3]
[367121649,1750662795317,-845.32,0.00032876,3]
[367121650,1750662795327,-1003.013708,0.00032876,3]
[367121651,1750662795336,-407.03,0.00032876,3]
[367121652,1750662795345,-490.0,0.00032876,3]
[367121653,1750662795355,-620.28,0.00032876,3]
[367121654,1750662795364,-692.18,0.00032876,3]
[367121655,1750662795375,-583.42,0.00032876,3]
[367121656,1750662795384,-1382.11,0.00032876,3]
[367121657,1750662795393,-957.53,0.00032876,3]
[367121658,1750662795403,-1520.85,0.00032876,3]
[367121659,1750662795412,-852.4,0.00032876,3]
[367121660,1750662795423,-1514.64,0.00032876,3]
[367121661,1750662795433,-1413.76,0.00032876,3]
[367121662,1750662795443,-564.98,0.00032876,3]
[367121663,1750662795453,-621.88,0.00032876,3]
[367121664,1750662795463,-1486.85,0.00032876,3]
[367121665,1750662795472,-643.76,0.00032876,3]
[367121666,1750662795482,-605.57,0.00032876,3]
[367121667,1750662795491,-765.6,0.00032876,3]
[367121668,1750662795501,-635.87,0.00032876,3]
[367121669,1750662795510,-748.29,0.00032876,3]
[367121670,1750662795520,-490.0,0.00032876,3]
[367121671,1750662795530,-559.87,0.00032876,3]
[367121672,1750662795541,-521.1,0.00032876,3]
[367121673,1750662795550,-702.32,0.00032876,3]
[367121674,1750662795559,-1437.96,0.00032876,3]
[367121675,1750662795568,-933.29,0.00032876,3]
[367121676,1750662795578,-623.74,0.00032876,3]
[367121677,1750662795588,-1229.23,0.00032876,3]
[367121678,1750662795597,-1240.62,0.00032876,3]
[367121679,1750662795607,-490.0,0.00032876,3]
[367121680,1750662795616,-1044.91,0.00032876,3]
[367121681,1750662795626,-636.16,0.00032876,3]
[367121682,1750662795635,-490.92,0.00032876,3]
[367121683,1750662795644,-583.46,0.00032876,3]
[367121684,1750662795654,-1648.05,0.00032876,3]
[367121685,1750662795664,-745.48,0.00032876,3]
[367121686,1750662795673,-1025.74,0.00032876,3]
[367121687,1750662795683,-507.64,0.00032876,3]
[367121688,1750662795693,-1776.13,0.00032876,3]
[367121689,1750662795703,-803.35,0.00032876,3]
[367121690,1750662795712,-1819.02,0.00032876,3]
[367121691,1750662795722,-1305.95,0.00032876,3]
[367121692,1750662795731,-1801.52,0.00032876,3]
[367121693,1750662795740,-825.12,0.00032876,3]
[367121694,1750662795750,-553.17,0.00032876,3]
[367121695,1750662795759,-1449.74,0.00032876,3]
[367121696,1750662795769,-1184.6,0.00032876,3]
[367121697,1750662795779,-2077.31,0.00032876,3]
[367121698,1750662795788,-903.1,0.00032876,3]
[367121699,1750662795798,-1228.76,0.00032876,3]
[367121700,1750662795808,-840.82,0.00032876,3]
[367121701,1750662795818,-972.48,0.00032876,3]
[367121702,1750662795827,-490.0,0.00032876,3]
[367121703,1750662795837,-698.82,0.00032876,3]
[367121704,1750662795847,-1683.09,0.00032876,3]
[367121705,1750662795856,-614.18,0.00032876,3]
[367121706,1750662795866,-1017.63,0.00032876,3]
[367121707,1750662795875,-1068.5,0.00032876,3]
[367121708,1750662795885,-899.45,0.00032876,3]
[367121709,1750662795894,-1018.31,0.00032876,3]
[367121710,1750662795904,-1034.85,0.00032876,3]
[367121711,1750662795914,-1636.32,0.00032876,3]
[367121712,1750662795924,-636.43,0.00032876,3]
[367121713,1750662795934,-514.73,0.00032876,3]
[367121714,1750662795943,-1597.54,0.00032876,3]
[367121715,1750662795952,-878.08,0.00032876,3]
[367121716,1750662795962,-933.44,0.00032876,3]
[367121717,1750662795971,-980.14,0.00032876,3]
[367121718,1750662795980,-1351.29,0.00032876,3]
[367121719,1750662795990,-490.0,0.00032876,3]
[367121720,1750662795999,-1021.72,0.00032876,3]
[367121721,1750662796008,-490.0,0.00032876,3]
[367121722,1750662796018,-2515.92,0.00032876,3]
[367121723,1750662796027,-973.74,0.00032876,3]
[367121724,1750662796036,-563.49,0.00032876,3]
[367121725,1750662796045,-718.42,0.00032876,3]
[367121726,1750662796055,-490.0,0.00032876,3]
[367121727,1750662796065,-763.59,0.00032876,3]
[367121728,1750662796074,-1171.08,0.00032876,3]
[367121729,1750662796085,-806.32,0.00032876,3]
[367121730,1750662796094,-1313.3,0.00032876,3]
[367121731,1750662796104,-1866.63,0.00032876,3]
[367121732,1750662796114,-783.39,0.00032876,3]
[367121733,1750662796123,-1408.5,0.00032876,3]
[367121734,1750662796133,-760.51,0.00032876,3]
[367121735,1750662796142,-640.07,0.00032876,3]
[367121736,1750662796152,-1113.91,0.00032876,3]
[367121737,1750662796161,-1204.57,0.00032876,3]
[367121738,1750662796172,-1615.12,0.00032876,3]
[367121739,1750662796184,-852.31,0.00032876,3]
[367121740,1750662796194,-1617.57,0.00032876,3]
[367121741,1750662796203,-1344.16,0.00032876,3]
[367121742,1750662796214,-1189.28,0.00032876,3]
[367121743,1750662796223,-924.24,0.00032876,3]
[367121744,1750662796233,-1017.87,0.00032876,3]
[367121745,1750662796244,-1327.65,0.00032876,3]
[367121746,1750662796254,-816.97,0.00032876,3]
[367121747,1750662796264,-1505.21,0.00032876,3]
[367121748,1750662796274,-1444.07,0.00032876,3]
[367121749,1750662796284,-233.05738263,0.00032876,3]
[367121750,1750662796293,-995.43,0.00032876,3]
[367121751,1750662796303,-3010.94,0.00032876,2]
[367121752,1750662796313,-1097.45,0.00032876,3]
[367121753,1750662796322,-753.53,0.00032876,3]
[367121754,1750662796332,-1037.06,0.00032876,3]
[367121755,1750662796342,-1995.53,0.00032876,3]
[367121756,1750662796352,-490.0,0.00032876,3]
[367121757,1750662796362,-752.2,0.00032876,3]
[367121758,1750662796372,-660.48,0.00032876,3]
[367121759,1750662796381,-1341.44,0.00032876,3]
[367121760,1750662796391,-850.05,0.00032876,3]
[367121761,1750662796402,-581.79,0.00032876,3]
[367121762,1750662796411,-2153.23,0.00032876,3]
[367121763,1750662796421,-557.61,0.00032876,3]
[367121764,1750662796430,-507.29,0.00032876,3]
[367121765,1750662796439,-572.59,0.00032876,3]
[367121766,1750662796449,-2413.05,0.00032876,3]
[367121767,1750662796458,-1348.78,0.00032876,3]
[367121768,1750662796468,-2316.4,0.00032876,3]
[367121769,1750662796477,-566.43,0.00032876,3]
[367121770,1750662796487,-1609.27,0.00032876,3]
[367121771,1750662796496,-490.0,0.00032876,3]
[367121772,1750662796506,-569.99,0.00032876,3]
[367121773,1750662796515,-490.0,0.00032876,3]
[367121774,1750662796525,-490.0,0.00032876,3]
[367121775,1750662796536,-2663.87,0.00032876,3]
[367121776,1750662796549,-731.27,0.00032876,3]
[367121777,1750662796559,-861.6,0.00032876,3]
[367121778,1750662796569,-560.0,0.00032876,3]
[367121779,1750662796579,-921.04,0.00032876,3]
[367121780,1750662796590,-783.55,0.00032876,3]
[367121781,1750662796599,-600.11,0.00032876,3]
[367121782,1750662796609,-1052.0,0.00032876,3]
[367121783,1750662796619,-1117.5,0.00032876,3]
[367121784,1750662796629,-785.27,0.00032876,3]
[367121785,1750662796639,-595.61,0.00032876,3]
[367121786,1750662796649,-950.58,0.00032876,3]
[367121787,1750662796659,-1688.41,0.00032876,3]
[367121788,1750662796668,-1953.41,0.00032876,3]
[367121789,1750662796678,-1726.17,0.00032876,3]
[367121790,1750662796688,-1456.32,0.00032876,3]
[367121791,1750662796698,-1698.32,0.00032876,3]
[367121792,1750662796708,-603.07,0.00032876,3]
[367121793,1750662796718,-1007.06,0.00032876,3]
[367121794,1750662796727,-1681.01,0.00032876,3]
[367121795,1750662796737,-1708.4,0.00032876,3]
[367121796,1750662796746,-873.29,0.00032876,3]
[367121797,1750662796755,-1098.59,0.00032876,3]
[367121798,1750662796765,-1944.53,0.00032876,3]
[367121799,1750662796774,-406.85513657,0.00032876,3]
[367121800,1750662796784,-2433.81,0.00032876,3]
[367121801,1750662796793,-577.0,0.00032876,3]
[367121802,1750662796803,-750.42,0.00032876,3]
[367121803,1750662796813,-662.45,0.00032876,3]
[367121804,1750662796822,-501.38,0.00032876,3]
[367121805,1750662796832,-1247.14,0.00032876,3]
[367121806,1750662796841,-1551.77,0.00032876,3]
[367121807,1750662796851,-1650.44,0.00032876,3]
[367121808,1750662796860,-529.91,0.00032876,3]
[367121809,1750662796871,-490.0,0.00032876,3]
[367121810,1750662796880,-788.62,0.00032876,3]
[367121811,1750662796891,-912.47,0.00032876,3]
[367121812,1750662796900,-1251.29,0.00032876,3]
[367121813,1750662796910,-655.66,0.00032876,3]
[367121814,1750662796919,-703.59,0.00032876,3]
[367121815,1750662796929,-675.57,0.00032876,3]
[367121816,1750662796940,-1664.2,0.00032876,3]
[367121817,1750662796951,-1433.27,0.00032876,3]
[367121818,1750662796960,-1679.9,0.00032876,3]
[367121819,1750662796970,-1066.4,0.00032876,3]
[367121820,1750662796979,-490.0,0.00032876,3]
[367121821,1750662796989,-572.95,0.00032876,3]
[367121822,1750662796998,-1605.51,0.00032876,3]
[367121823,1750662797008,-1690.95,0.00032876,3]
[367121824,1750662797018,-490.0,0.00032876,3]
[367121825,1750662797028,-1674.28,0.00032876,3]
[367121826,1750662797038,-638.77,0.00032876,3]
[367121827,1750662797048,-1574.11,0.00032876,3]
[367121828,1750662797059,-378.81,0.00032876,3]
[367121829,1750662797069,-684.38,0.00032876,3]
[367121830,1750662797078,-1278.36,0.00032876,3]
[367121831,1750662797088,-905.6,0.00032876,3]
[367121832,1750662797098,-1682.39,0.00032876,3]
[367121833,1750662797107,-1126.22,0.00032876,3]
[367121834,1750662797117,-1883.69,0.00032876,3]
[367121835,1750662797126,-7415.21,0.00032876,3]
[367121836,1750662797135,-1410.38,0.00032876,3]
[367121837,1750662797144,-2332.56,0.00032876,3]
[367121838,1750662797154,-1449.04,0.00032876,3]
[367121839,1750662797163,-849.69,0.00032876,3]
[367121840,1750662797172,-883.32,0.00032876,3]
[367121841,1750662797182,-1248.93,0.00032876,3]
[367121842,1750662797192,-587.88,0.00032876,3]
[367121843,1750662797201,-901.3,0.00032876,3]
[367121844,1750662797211,-1164.04,0.00032876,3]
[367121845,1750662797221,-1753.14,0.00032876,3]
[367121846,1750662797231,-10399.38,0.00032876,3]
[367121847,1750662797240,-4073.96,0.00032876,3]
[367121848,1750662797250,-580.67,0.00032876,3]
[367121849,1750662797259,-1448.46,0.00032876,3]
[367121850,1750662797269,-836.73,0.00032876,3]
[367121851,1750662797278,-918.93,0.00032876,3]
[367121852,1750662797288,-1355.08,0.00032876,3]
[367121853,1750662797298,-1900.51,0.00032876,3]
[367121854,1750662797308,-526.35,0.00032876,3]
[367121855,1750662797317,-6824.52,0.00032876,3]
[367121856,1750662797327,-1016.76,0.00032876,3]
[367121857,1750662797338,-3401.6,0.00032876,3]
[367121858,1750662797347,-3966.47,0.00032876,3]
[367121859,1750662797358,-490.0,0.00032876,3]
[367121860,1750662797368,-909.73,0.00032876,3]
[367121861,1750662797378,-934.07,0.00032876,3]
[367121862,1750662797388,-4949.36,0.00032876,3]
[367121863,1750662797398,-2915.88,0.00032876,3]
[367121864,1750662797407,-1741.72,0.00032876,3]
[367121865,1750662797417,-1585.93,0.00032876,3]
[367121866,1750662797428,-490.0,0.00032876,3]
[367121867,1750662797438,-608.52,0.00032876,3]
[367121868,1750662797448,-18062.45,0.00032876,3]
[367121869,1750662797458,-1570.58,0.00032876,3]
[367121870,1750662797467,-3468.99,0.00032876,3]
[367121871,1750662797477,-1672.97,0.00032876,3]
[367121872,1750662797487,-789.6,0.00032876,3]
[367121873,1750662797497,-798.22,0.00032876,3]
[367121874,1750662797507,-1533.06,0.00032876,3]
[367121875,1750662797516,-1681.4,0.00032876,3]
[367121876,1750662797526,-814.19,0.00032876,3]
[367121877,1750662797541,-528.64,0.00032876,3]
[367121878,1750662797551,-1980.76,0.00032876,3]
[367121879,1750662797560,-1108.02,0.00032876,3]
[367121880,1750662797570,-2594.4,0.00032876,3]
[367121881,1750662797580,-1623.55,0.00032876,3]
[367121882,1750662797589,-490.0,0.00032876,3]
[367121883,1750662797599,-891.21,0.00032876,3]
[367121884,1750662797609,-1019.18,0.00032876,3]
[367121885,1750662797618,-1174.99,0.00032876,3]
[367121886,1750662797628,-3127.29,0.00032876,3]
[367121887,1750662797638,-1569.21,0.00032876,3]
[367121888,1750662797648,-1940.59,0.00032876,3]
[367121889,1750662797658,-664.92,0.00032876,3]
[367121890,1750662797668,-2329.34,0.00032876,3]
[367121891,1750662797678,-1830.85,0.00032876,3]
[367121892,1750662797688,-1700.21,0.00032876,3]
[367121893,1750662797698,-2769.81,0.00032876,3]
[367121894,1750662797708,-6713.02,0.00032876,3]
[367121895,1750662797718,-777.56,0.00032876,3]
[367121896,1750662797727,-744.42,0.00032876,3]
[367121897,1750662797736,-2394.73,0.00032876,3]
[367121898,1750662797746,-826.09,0.00032876,3]
[367121899,1750662797756,-1294.78,0.00032876,3]
[367121900,1750662797766,-490.0,0.00032876,3]
[367121901,1750662797776,-760.04,0.00032876,3]
[367121902,1750662797786,-1749.09,0.00032876,3]
[367121903,1750662797795,-490.0,0.00032876,3]
[367121904,1750662797805,-555.71,0.00032876,3]
[367121905,1750662797816,-1626.24,0.00032876,3]
[367121906,1750662797826,-4056.64,0.00032876,3]
[367121907,1750662797835,-1498.64,0.00032876,3]
[367121908,1750662797845,-1457.21,0.00032876,3]
[367121909,1750662797856,-490.0,0.00032876,3]
[367121910,1750662797866,-737.54,0.00032876,3]
[367121911,1750662797876,-1307.83,0.00032876,3]
[367121912,1750662797886,-728.06,0.00032876,3]
[367121913,1750662797896,-1832.35,0.00032876,3]
[367121914,1750662797905,-1380.67,0.00032876,3]
[367121915,1750662797915,-2228.14,0.00032876,3]
[367121916,1750662797925,-2372.02,0.00032876,3]
[367121917,1750662797936,-3318.96,0.00032876,3]
[367121918,1750662797946,-709.01,0.00032876,3]
[367121919,1750662797955,-862.45,0.00032876,3]
[367121920,1750662797965,-788.8,0.00032876,3]
[367121921,1750662797975,-1200.13,0.00032876,3]
[367121922,1750662797984,-1916.86,0.00032876,3]
[367121923,1750662797994,-678.77,0.00032876,3]
[367121924,1750662798005,-4654.08,0.00032876,3]
[367121925,1750662798015,-1366.52,0.00032876,3]
[367121926,1750662798025,-515.04,0.00032876,3]
[367121927,1750662798035,-788.62,0.00032876,3]
[367121928,1750662798044,-553.78,0.00032876,3]
[367121929,1750662798054,-1107.26,0.00032876,3]
[367121930,1750662798064,-498.97,0.00032876,3]
[367121931,1750662798074,-7394.17,0.00032876,3]
[367121932,1750662798084,-1624.99,0.00032876,3]
[367121933,1750662798094,-1578.33,0.00032876,3]
[367121934,1750662798103,-2834.49,0.00032876,3]
[367121935,1750662798114,-1036.64,0.00032876,3]
[367121936,1750662798124,-12536.04,0.00032876,3]
[367121937,1750662798134,-3543.99,0.00032876,3]
[367121938,1750662798144,-1768.62,0.00032876,3]
[367121939,1750662798154,-497.45,0.00032876,3]
[367121940,1750662798164,-1619.96,0.00032876,3]
[367121941,1750662798174,-510.41,0.00032876,3]
[367121942,1750662798185,-5190.35,0.00032876,3]
[367121943,1750662798195,-9852.89,0.00032876,3]
[367121944,1750662798205,-490.0,0.00032876,3]
[367121945,1750662798216,-1552.44,0.00032876,3]
[367121946,1750662798226,-814.87,0.00032876,3]
[367121947,1750662798235,-2783.14,0.00032876,3]
[367121948,1750662798245,-510.26,0.00032876,3]
[367121949,1750662798254,-1717.08,0.00032876,3]
[367121950,1750662798264,-1947.91,0.00032876,3]
[367121951,1750662798275,-1630.26,0.00032876,3]
[367121952,1750662798284,-2330.84,0.00032876,3]
[367121953,1750662798294,-752.02,0.00032876,3]
[367121954,1750662798304,-1618.67,0.00032876,3]
[367121955,1750662798315,-1776.65,0.00032876,3]
[367121956,1750662798325,-915.84,0.00032876,3]
[367121957,1750662798335,-1151.97,0.00032876,3]
[367121958,1750662798345,-670.37,0.00032876,3]
[367121959,1750662798355,-3986.65,0.00032876,3]
[367121960,1750662798365,-1591.01,0.00032876,3]
[367121961,1750662798375,-6065.53,0.00032876,3]
[367121962,1750662798385,-1605.38,0.00032876,3]
[367121963,1750662798689,-1960.82,0.00032876,3]
[367121964,1750662798701,-1642.63,0.00032876,3]
[367121965,1750662798711,-798.12,0.00032876,3]
[367121966,1750662798721,-1292.66,0.00032876,3]
[367121967,1750662798731,-2292.5,0.00032876,3]
[367121968,1750662798740,-2903.63,0.00032876,3]
[367121969,1750662798755,-1562.1,0.00032876,3]
[367121970,1750662798765,-4219.23,0.00032876,3]
[367121971,1750662798777,-765.43,0.00032876,3]
[367121972,1750662798796,-1872.32,0.00032876,3]
[367121973,1750662798807,-3240.53,0.00032876,3]
[367121974,1750662798820,-492.32,0.00032876,3]
[367121975,1750662798831,-1499.13,0.00032876,3]
[367121976,1750662798842,-1684.89,0.00032876,3]
[367121977,1750662798853,-1822.31,0.00032876,3]
[367121978,1750662798863,-2262.37,0.00032876,3]
[367121979,1750662798875,-745.32,0.00032876,3]
[367121980,1750662798886,-1565.33,0.00032876,3]
[367121981,1750662798897,-1599.78,0.00032876,3]
[367121982,1750662798907,-3248.59,0.00032876,3]
[367121983,1750662798919,-795.18,0.00032876,3]
[367121984,1750662798930,-638.67,0.00032876,3]
[367121985,1750662798941,-8785.1,0.00032876,3]
[367121986,1750662798951,-849.6,0.00032876,3]
[367121987,1750662798962,-1787.94,0.00032876,3]
[367121988,1750662798973,-1444.68,0.00032876,3]
[367121989,1750662798984,-1335.88,0.00032876,3]
[367121990,1750662798995,-948.02,0.00032876,3]
[367121991,1750662799006,-490.0,0.00032876,3]
[367121992,1750662799016,-1583.66,0.00032876,3]
[367121993,1750662799028,-507.9,0.00032876,3]
[367121994,1750662799040,-3963.91,0.00032876,3]
[367121995,1750662799051,-1578.99,0.00032876,3]
[367121996,1750662799062,-1445.82,0.00032876,3]
[367121997,1750662799073,-1285.59,0.00032876,3]
[367121998,1750662799083,-728.45,0.00032876,3]
[367121999,1750662799094,-806.96,0.00032876,3]
[367122000,1750662799105,-1797.81,0.00032876,3]
[367122001,1750662799116,-1432.05,0.00032876,3]
[367122002,1750662799126,-1831.64,0.00032876,3]
[367122003,1750662799137,-919.07,0.00032876,3]
[367122004,1750662799148,-14900.62,0.00032876,3]
[367122005,1750662799158,-1833.67,0.00032876,3]
[367122006,1750662799170,-2078.39,0.00032876,3]
[367122007,1750662799182,-510.45,0.00032876,3]
[367122008,1750662799192,-4833.93,0.00032876,3]
[367122009,1750662799204,-1601.31,0.00032876,3]
[367122010,1750662799214,-759.06,0.00032876,3]
[367122011,1750662799225,-873.41,0.00032876,3]
[367122012,1750662799236,-4669.42,0.00032876,3]
[367122013,1750662799247,-791.68,0.00032876,3]
[367122014,1750662799259,-1693.53,0.00032876,3]
[367122015,1750662799271,-990.18,0.00032876,3]
[367122016,1750662799282,-1034.99,0.00032876,3]
[367122017,1750662799293,-1620.6,0.00032876,3]
[367122018,1750662799303,-1653.45,0.00032876,3]
[367122019,1750662799315,-1389.7,0.00032876,3]
[367122020,1750662799326,-3451.15,0.00032876,3]
[367122021,1750662799337,-2416.24,0.00032876,3]
[367122022,1750662799347,-993.54,0.00032876,3]
[367122023,1750662799358,-11090.94,0.00032876,3]
[367122024,1750662799369,-1799.28,0.00032876,3]
[367122025,1750662799381,-1701.67,0.00032876,3]
[367122026,1750662799392,-2070.18,0.00032876,3]
[367122027,1750662799402,-1221.42,0.00032876,3]
[367122028,1750662799413,-1378.47,0.00032876,3]
[367122029,1750662799425,-1736.17,0.00032876,3]
[367122030,1750662799436,-1087.15,0.00032876,3]
[367122031,1750662799448,-1834.95,0.00032876,3]
[367122032,1750662799459,-709.09,0.00032876,3]
[367122033,1750662799472,-1672.0,0.00032876,3]
[367122034,1750662799482,-1571.12,0.00032876,3]
[367122035,1750662799492,-1351.61,0.00032876,3]
[367122036,1750662799503,-491.56777761,0.00032876,3]
[367122037,1750662799514,-4884.01,0.00032876,3]
[367122038,1750662799524,-1816.97,0.00032876,3]
[367122039,1750662799537,-1729.07,0.00032876,3]
[367122040,1750662799548,-8073.75,0.00032876,3]
[367122041,1750662799559,-1652.26,0.00032876,3]
[367122042,1750662799569,-867.32,0.00032876,3]
[367122043,1750662799581,-1482.76,0.00032876,3]
[367122044,1750662799592,-30050.84,0.00032876,3]
[367122045,1750662799603,-1513.2,0.00032876,3]
[367122046,1750662799614,-1869.9,0.00032876,3]
[367122047,1750662799624,-825.47,0.00032876,3]
[367122048,1750662799634,-1291.21,0.00032876,3]
[367122049,1750662799644,-529.57,0.00032876,3]
[367122050,1750662799653,-718.8,0.00032876,3]
[367122051,1750662799663,-1013.98,0.00032876,2]
[367122052,1750662799673,-749.71,0.00032876,3]
[367122053,1750662799684,-2626.45,0.00032876,3]
[367122054,1750662799694,-1301.95,0.00032876,3]
[367122055,1750662799704,-1000.93,0.00032876,3]
[367122056,1750662799714,-914.97,0.00032876,3]
[367122057,1750662799724,-5331.91,0.00032876,3]
[367122058,1750662799735,-6188.74,0.00032876,3]
[367122059,1750662799746,-733.17,0.00032876,3]
[367122060,1750662799756,-2204.74,0.00032876,3]
[367122061,1750662799767,-742.07,0.00032876,3]
[367122062,1750662799778,-1553.91,0.00032876,3]
[367122063,1750662799789,-1201.89,0.00032876,3]
[367122064,1750662799799,-716.87,0.00032876,3]
[367122065,1750662799808,-866.05,0.00032876,3]
[367122066,1750662799818,-5637.09,0.00032876,3]
[367122067,1750662799827,-1651.87,0.00032876,3]
[367122068,1750662799837,-2465.19,0.00032876,3]
[367122069,1750662799847,-984.57,0.00032876,3]
[367122070,1750662799857,-1607.85,0.00032876,3]
[367122071,1750662799867,-572.05,0.00032876,3]
[367122072,1750662799876,-500.0,0.00032876,2]
[367122073,1750662799886,-1536.26,0.00032876,3]
[367122074,1750662799898,-500.0,0.00032876,2]
[367122075,1750662799909,-500.0,0.00032876,2]
[367122076,1750662799919,-1906.99,0.00032876,3]
[367122077,1750662799929,-500.0,0.00032876,2]
[367122078,1750662799939,-500.0,0.00032876,2]
[367122079,1750662799949,-500.0,0.00032876,2]
[367122080,1750662799960,-500.0,0.00032876,2]
[367122081,1750662799970,-500.0,0.00032876,2]
[367122082,1750662799980,-500.0,0.00032876,2]
[367122083,1750662799991,-368.57960693,0.00032876,2]
[367122084,1750662800001,-500.0,0.00032876,2]
[367122085,1750662800012,-500.0,0.00032876,2]
[367122086,1750662800023,-500.0,0.00032876,2]
[367122087,1750662800033,-500.0,0.00032876,2]
[367122088,1750662800043,-500.0,0.00032876,2]
[367122089,1750662800054,-500.0,0.00032876,2]
[367122090,1750662800065,-500.0,0.00032876,2]
[367122091,1750662800075,-500.0,0.00032876,2]
[367122092,1750662800085,-500.0,0.00032876,2]
[367122093,1750662800095,-500.0,0.00032876,2]
[367122094,1750662800105,-500.0,0.00032876,2]
[367122095,1750662800116,-500.0,0.00032876,2]
[367122096,1750662800127,-500.0,0.00032876,2]
[367122097,1750662800139,-764.72,0.00032876,3]
[367122098,1750662800150,-2965.58,0.00032876,3]
[367122099,1750662800160,-158.66751958,0.00032876,2]
[367122100,1750662800170,-594.04,0.00032876,3]
[367122101,1750662800181,-1179.78859382,0.00032876,2]
[367122102,1750662800193,-1179.78859382,0.00032876,2]
[367122103,1750662800204,-1179.78859382,0.00032876,2]
[367122104,1750662800213,-1179.78859382,0.00032876,2]
[367122105,1750662800223,-1179.78859382,0.00032876,2]
[367122106,1750662800233,-1179.78859382,0.00032876,2]
[367122107,1750662800244,-5434.37,0.00032877,2]
[367122108,1750662800254,-883.65,0.00032904,30]
[367122109,1750662800264,-1224.0,0.00032964,2]
[367122110,1750662800274,-1258.03765544,0.00032969,28]
[367122111,1750662800283,-50395.17418512,0.0003299,2]
[367122112,1750662800294,-2779.23,0.00033,3]
[367122113,1750662800304,-191.0,0.00033,30]
[367122114,1750662800315,-214.0,0.00033,2]
[367122115,1750662800325,-4000.0,0.00033,4]
[367122116,1750662800335,-150.0,0.00033026,2]
[367122117,1750662800344,-3336.0,0.00033026,2]
[367122118,1750662800354,-947.0,0.00033026,2]
[367122119,1750662800364,-638.0,0.00033026,2]
[367122120,1750662800375,-803.0,0.00033026,2]
[367122121,1750662800385,-1224.0,0.00033064,2]
[367122122,1750662800394,-1224.0,0.00033116,2]
[367122123,1750662800404,-5455.753665,0.0003315,3]
[367122124,1750662800414,-906.91,0.0003315,3]
[367122125,1750662800424,-765.27,0.0003315,3]
[367122126,1750662800434,-252.921479,0.0003315,3]
[367122127,1750662800444,-958.78,0.0003315,3]
[367122128,1750662800455,-972.11,0.0003315,3]
[367122129,1750662800464,-548.42,0.0003315,3]
[367122130,1750662800473,-548.42,0.0003315,3]
[367122131,1750662800483,-2591.829598,0.0003315,3]
[367122132,1750662800493,-615.11,0.0003315,3]
[367122133,1750662800503,-804.23,0.0003315,3]
[367122134,1750662800512,-1075.31,0.0003315,3]